[Event "Titled Tuesday Blitz May 30 Early 2023"]
[White "Ismagilov, Damir"]
[Black "Ilamparthi A R"]
[WhiteFideId "34199982"]
[BlackFideId "45015775"]
[WhiteElo "2143"]
[BlackElo "2348"]
[Result "0-1"]
[Round "05"]
[TimeControl "180+2"]
[Date "2023.05.30"]
[WhiteClock "0:00:04"]
[BlackClock "0:00:17"]

1. d4 {[%clk 0:03:00]}  Nf6 {[%clk 0:02:59]} 2. Bf4 {[%clk 0:02:59]}  g6 {[%clk 0:02:58]} 3. Nc3 {[%clk 0:03:00]}  d5 {[%clk 0:02:58]} 4. Qd2 {[%clk 0:02:58]}  Bg7 {[%clk 0:02:57]} 5. Bh6 {[%clk 0:02:57]}  Bxh6 {[%clk 0:02:51]} 6. Qxh6 {[%clk 0:02:58]}  c5 {[%clk 0:02:52]} 7. dxc5 {[%clk 0:02:58]}  d4 {[%clk 0:02:52]} 8. O-O-O {[%clk 0:02:59]}  Nc6 {[%clk 0:02:50]} 9. e3 {[%clk 0:02:56]}  e5 {[%clk 0:02:31]} 10. exd4 {[%clk 0:02:43]}  exd4 {[%clk 0:02:29]} 11. Nb5 {[%clk 0:02:41]}  Be6 {[%clk 0:02:28]} 12. Nd6+ {[%clk 0:02:39]}  Kd7 {[%clk 0:02:21]} 13. Bc4 {[%clk 0:02:27]}  Bxc4 {[%clk 0:01:57]} 14. Nxc4 {[%clk 0:02:28]}  Qe7 {[%clk 0:01:56]} 15. Nf3 {[%clk 0:02:16]}  Qxc5 {[%clk 0:01:54]} 16. Ncd2 {[%clk 0:01:36]}  d3 {[%clk 0:01:27]} 17. c3 {[%clk 0:01:22]}  Rad8 {[%clk 0:01:25]} 18. Qg7 {[%clk 0:01:12]}  Nd5 {[%clk 0:00:58]} 19. Qxf7+ {[%clk 0:01:12]}  Kc8 {[%clk 0:00:58]} 20. Qe6+ {[%clk 0:01:08]}  Kb8 {[%clk 0:00:57]} 21. Nb3 {[%clk 0:01:07]}  Qxf2 {[%clk 0:00:55]} 22. Rxd3 {[%clk 0:00:58]}  Nf4 {[%clk 0:00:49]} 23. Rxd8+ {[%clk 0:00:20]}  Rxd8 {[%clk 0:00:50]} 24. Qe4 {[%clk 0:00:10]}  Nd3+ {[%clk 0:00:48]} 25. Kd1 {[%clk 0:00:08]}  Nc5+ {[%clk 0:00:33]} 26. Qd4 {[%clk 0:00:07]}  Nxd4 {[%clk 0:00:32]} 27. Nbxd4 {[%clk 0:00:08]}  Qxg2 {[%clk 0:00:28]} 28. Re1 {[%clk 0:00:07]}  Qxf3+ {[%clk 0:00:28]} 29. Kc2 {[%clk 0:00:07]}  Qd3+ {[%clk 0:00:26]} 30. Kc1 {[%clk 0:00:07]}  Rxd4 {[%clk 0:00:24]} 31. cxd4 {[%clk 0:00:08]}  Ne4 {[%clk 0:00:24]} 32. Rd1 {[%clk 0:00:05]}  Qc4+ {[%clk 0:00:23]} 33. Kb1 {[%clk 0:00:05]}  Kc7 {[%clk 0:00:23]} 34. d5 {[%clk 0:00:05]}  Kd6 {[%clk 0:00:23]} 35. a3 {[%clk 0:00:06]}  Qb3 {[%clk 0:00:21]} 36. Rc1 {[%clk 0:00:05]}  g5 {[%clk 0:00:19]} 37. Ka1 {[%clk 0:00:06]}  h5 {[%clk 0:00:19]} 38. h4 {[%clk 0:00:06]}  gxh4 {[%clk 0:00:19]} 39. Rh1 {[%clk 0:00:06]}  Qg3 {[%clk 0:00:19]} 40. Rd1 {[%clk 0:00:05]}  h3 {[%clk 0:00:19]} 41. Re1 {[%clk 0:00:06]}  h2 {[%clk 0:00:19]} 42. Ka2 {[%clk 0:00:05]}  Qxe1 {[%clk 0:00:19]} 43. Kb3 {[%clk 0:00:04]}  h1=Q {[%clk 0:00:17]} 44. Kc4 {[%clk 0:00:04]} 0-1


[Site "https://www.chess.com"]

[Event "Titled Tuesday Blitz May 30 Early 2023"]
[White "Papasimakopoulos, Alexandros"]
[Black "Terletsky, Oleg"]
[WhiteFideId "4244125"]
[BlackFideId "14116774"]
[WhiteElo "2359"]
[BlackElo "2084"]
[Result "1-0"]
[Round "05"]
[TimeControl "180+2"]
[Date "2023.05.30"]
[WhiteClock "0:02:31"]
[BlackClock "0:01:12"]

1. d4 {[%clk 0:03:00]}  Nf6 {[%clk 0:02:59]} 2. c4 {[%clk 0:03:00]}  g6 {[%clk 0:03:00]} 3. Nc3 {[%clk 0:03:00]}  Bg7 {[%clk 0:03:00]} 4. Bg5 {[%clk 0:03:00]}  O-O {[%clk 0:02:59]} 5. e3 {[%clk 0:03:00]}  c5 {[%clk 0:03:00]} 6. d5 {[%clk 0:03:00]}  d6 {[%clk 0:02:54]} 7. Nf3 {[%clk 0:02:58]}  e6 {[%clk 0:02:54]} 8. Be2 {[%clk 0:02:57]}  exd5 {[%clk 0:02:52]} 9. cxd5 {[%clk 0:02:57]}  a6 {[%clk 0:02:19]} 10. a4 {[%clk 0:02:56]}  h6 {[%clk 0:02:17]} 11. Bh4 {[%clk 0:02:56]}  Re8 {[%clk 0:02:12]} 12. Nd2 {[%clk 0:02:55]}  Nbd7 {[%clk 0:02:02]} 13. O-O {[%clk 0:02:55]}  g5 {[%clk 0:01:56]} 14. Bg3 {[%clk 0:02:55]}  Ne5 {[%clk 0:01:57]} 15. Re1 {[%clk 0:02:50]}  Bf5 {[%clk 0:01:47]} 16. e4 {[%clk 0:02:39]}  Bg4 {[%clk 0:01:39]} 17. Bxe5 {[%clk 0:02:31]}  Bxe2 {[%clk 0:01:12]} 18. Bxf6 {[%clk 0:02:31]} 1-0


[Site "https://www.chess.com"]

[Event "Titled Tuesday Blitz May 30 Early 2023"]
[White "ATM622"]
[Black "Aradhya, Garg"]
[BlackFideId "25006746"]
[WhiteElo "2554"]
[BlackElo "2263"]
[Result "0-1"]
[Round "05"]
[TimeControl "180+2"]
[Date "2023.05.30"]
[WhiteClock "0:00:56"]
[BlackClock "0:01:15"]

1. d4 {[%clk 0:03:00]}  d5 {[%clk 0:03:00]} 2. c4 {[%clk 0:02:59]}  c6 {[%clk 0:03:00]} 3. Nf3 {[%clk 0:03:00]}  Nf6 {[%clk 0:02:59]} 4. Nbd2 {[%clk 0:03:00]}  Bf5 {[%clk 0:02:59]} 5. Nh4 {[%clk 0:03:00]}  Be4 {[%clk 0:02:59]} 6. e3 {[%clk 0:03:00]}  e6 {[%clk 0:02:59]} 7. Be2 {[%clk 0:03:00]}  Nbd7 {[%clk 0:02:58]} 8. O-O {[%clk 0:03:00]}  Be7 {[%clk 0:02:57]} 9. b3 {[%clk 0:02:57]}  h6 {[%clk 0:02:53]} 10. Bb2 {[%clk 0:02:57]}  Bh7 {[%clk 0:02:52]} 11. Nhf3 {[%clk 0:02:51]}  O-O {[%clk 0:02:52]} 12. Ne5 {[%clk 0:02:51]}  a5 {[%clk 0:02:50]} 13. f4 {[%clk 0:02:49]}  a4 {[%clk 0:02:47]} 14. Bd3 {[%clk 0:02:45]}  Bxd3 {[%clk 0:02:44]} 15. Nxd3 {[%clk 0:02:44]}  axb3 {[%clk 0:02:38]} 16. axb3 {[%clk 0:02:44]}  Qb6 {[%clk 0:02:39]} 17. f5 {[%clk 0:02:34]}  Rxa1 {[%clk 0:02:14]} 18. Qxa1 {[%clk 0:02:28]}  exf5 {[%clk 0:02:09]} 19. Rxf5 {[%clk 0:02:27]}  Re8 {[%clk 0:02:03]} 20. Ne5 {[%clk 0:02:10]}  Nxe5 {[%clk 0:01:54]} 21. Rxe5 {[%clk 0:01:55]}  Ng4 {[%clk 0:01:54]} 22. Rf5 {[%clk 0:01:29]}  Nxe3 {[%clk 0:01:44]} 23. Rf3 {[%clk 0:01:29]}  Nc2 {[%clk 0:01:41]} 24. c5 {[%clk 0:01:10]}  Bxc5 {[%clk 0:01:27]} 25. dxc5 {[%clk 0:01:10]}  Qxc5+ {[%clk 0:01:27]} 26. Bd4 {[%clk 0:01:10]}  Nxd4 {[%clk 0:01:27]} 27. Rf2 {[%clk 0:01:07]}  Nc2 {[%clk 0:01:19]} 28. Qb2 {[%clk 0:00:56]}  Re2 {[%clk 0:01:15]} 0-1


[Site "https://www.chess.com"]

[Event "Titled Tuesday Blitz May 30 Early 2023"]
[White "Martic, Ivan"]
[Black "Samunenkov, Ihor"]
[WhiteFideId "929301"]
[BlackFideId "14187086"]
[WhiteElo "2360"]
[BlackElo "2457"]
[Result "1-0"]
[Round "05"]
[TimeControl "180+2"]
[Date "2023.05.30"]
[WhiteClock "0:00:11"]
[BlackClock "0:00:00"]

1. d4 {[%clk 0:03:00]}  Nf6 {[%clk 0:02:57]} 2. Bg5 {[%clk 0:02:59]}  e6 {[%clk 0:02:56]} 3. e3 {[%clk 0:02:58]}  d5 {[%clk 0:02:54]} 4. Nd2 {[%clk 0:02:57]}  c5 {[%clk 0:02:53]} 5. c3 {[%clk 0:02:56]}  Nbd7 {[%clk 0:02:48]} 6. f4 {[%clk 0:02:55]}  h6 {[%clk 0:02:35]} 7. Bh4 {[%clk 0:02:54]}  Bd6 {[%clk 0:02:31]} 8. Ngf3 {[%clk 0:02:53]}  cxd4 {[%clk 0:02:31]} 9. cxd4 {[%clk 0:02:52]}  Qb6 {[%clk 0:02:26]} 10. Bd3 {[%clk 0:02:38]}  Qxb2 {[%clk 0:01:59]} 11. O-O {[%clk 0:02:34]}  O-O {[%clk 0:01:57]} 12. Ne5 {[%clk 0:02:30]}  b6 {[%clk 0:01:29]} 13. Rb1 {[%clk 0:02:22]}  Qa3 {[%clk 0:00:55]} 14. Ndc4 {[%clk 0:02:08]}  dxc4 {[%clk 0:00:54]} 15. Nxc4 {[%clk 0:02:08]}  Qa6 {[%clk 0:00:50]} 16. Nxd6 {[%clk 0:02:07]}  Qxa2 {[%clk 0:00:47]} 17. f5 {[%clk 0:01:52]}  Qd5 {[%clk 0:00:42]} 18. Bg3 {[%clk 0:01:40]}  e5 {[%clk 0:00:42]} 19. Nxc8 {[%clk 0:01:19]}  Raxc8 {[%clk 0:00:36]} 20. Rb5 {[%clk 0:01:18]}  Qc6 {[%clk 0:00:29]} 21. dxe5 {[%clk 0:01:15]}  Ne4 {[%clk 0:00:27]} 22. Qg4 {[%clk 0:00:42]}  Ndc5 {[%clk 0:00:23]} 23. f6 {[%clk 0:00:38]}  g6 {[%clk 0:00:23]} 24. Rxc5 {[%clk 0:00:36]}  Qxc5 {[%clk 0:00:19]} 25. Qxe4 {[%clk 0:00:31]}  Rfe8 {[%clk 0:00:19]} 26. Qf4 {[%clk 0:00:24]}  Kh7 {[%clk 0:00:18]} 27. h4 {[%clk 0:00:17]}  Rcd8 {[%clk 0:00:13]} 28. Be4 {[%clk 0:00:14]}  h5 {[%clk 0:00:09]} 29. Qg5 {[%clk 0:00:12]}  Kh8 {[%clk 0:00:00]} 30. Qh6+ {[%clk 0:00:11]} 1-0


[Site "https://www.chess.com"]

[Event "Titled Tuesday Blitz May 30 Early 2023"]
[White "Ronka, Erik"]
[Black "Oleksiyenko, Mykhaylo"]
[WhiteFideId "505080"]
[BlackFideId "4152417"]
[WhiteElo "2264"]
[BlackElo "2551"]
[Result "0-1"]
[Round "05"]
[TimeControl "180+2"]
[Date "2023.05.30"]
[WhiteClock "0:00:48"]
[BlackClock "0:01:07"]

1. e4 {[%clk 0:02:59]}  c5 {[%clk 0:02:59]} 2. Nf3 {[%clk 0:02:59]}  e6 {[%clk 0:02:58]} 3. Nc3 {[%clk 0:02:57]}  a6 {[%clk 0:02:58]} 4. d4 {[%clk 0:02:55]}  cxd4 {[%clk 0:02:59]} 5. Nxd4 {[%clk 0:02:55]}  b5 {[%clk 0:02:59]} 6. Bd3 {[%clk 0:02:55]}  Qb6 {[%clk 0:02:59]} 7. Nf3 {[%clk 0:02:48]}  Qc7 {[%clk 0:02:59]} 8. O-O {[%clk 0:02:47]}  Bb7 {[%clk 0:02:59]} 9. Re1 {[%clk 0:02:47]}  Be7 {[%clk 0:02:59]} 10. e5 {[%clk 0:02:46]}  f5 {[%clk 0:02:59]} 11. Bf4 {[%clk 0:02:25]}  Nh6 {[%clk 0:02:54]} 12. Qd2 {[%clk 0:02:25]}  Nc6 {[%clk 0:02:25]} 13. Rad1 {[%clk 0:01:49]}  O-O-O {[%clk 0:02:10]} 14. Bxb5 {[%clk 0:01:28]}  axb5 {[%clk 0:02:07]} 15. Nxb5 {[%clk 0:01:29]}  Qa5 {[%clk 0:02:00]} 16. Nd6+ {[%clk 0:01:12]}  Bxd6 {[%clk 0:01:59]} 17. Qxd6 {[%clk 0:01:13]}  Nf7 {[%clk 0:01:40]} 18. Qd3 {[%clk 0:01:07]}  g5 {[%clk 0:01:33]} 19. Nxg5 {[%clk 0:01:03]}  Nxg5 {[%clk 0:01:33]} 20. Bxg5 {[%clk 0:01:04]}  Rdg8 {[%clk 0:01:19]} 21. Bf6 {[%clk 0:01:04]}  Rxg2+ {[%clk 0:01:15]} 22. Kf1 {[%clk 0:00:48]}  Rhg8 {[%clk 0:01:07]} 0-1


[Site "https://www.chess.com"]

[Event "Titled Tuesday Blitz May 30 Early 2023"]
[White "Girsh, Daniel"]
[Black "Goryachkina, Aleksandra"]
[WhiteFideId "30949190"]
[BlackFideId "4147103"]
[WhiteElo "2075"]
[BlackElo "2471"]
[Result "1-0"]
[Round "05"]
[TimeControl "180+2"]
[Date "2023.05.30"]
[WhiteClock "0:00:23"]
[BlackClock "0:00:00"]

1. c4 {[%clk 0:03:00]}  e6 {[%clk 0:02:58]} 2. Nc3 {[%clk 0:03:00]}  d5 {[%clk 0:02:58]} 3. d4 {[%clk 0:03:00]}  h6 {[%clk 0:02:57]} 4. Nf3 {[%clk 0:02:57]}  Nf6 {[%clk 0:02:57]} 5. Bf4 {[%clk 0:02:47]}  dxc4 {[%clk 0:02:49]} 6. e3 {[%clk 0:02:47]}  Bd6 {[%clk 0:02:49]} 7. Bxc4 {[%clk 0:02:42]}  Bxf4 {[%clk 0:02:45]} 8. exf4 {[%clk 0:02:42]}  O-O {[%clk 0:02:45]} 9. O-O {[%clk 0:02:42]}  Nbd7 {[%clk 0:02:43]} 10. Qe2 {[%clk 0:02:37]}  Nb6 {[%clk 0:02:42]} 11. Bb3 {[%clk 0:02:30]}  Bd7 {[%clk 0:02:34]} 12. Ne5 {[%clk 0:02:29]}  Bc6 {[%clk 0:02:29]} 13. Nxc6 {[%clk 0:02:28]}  bxc6 {[%clk 0:02:29]} 14. Rad1 {[%clk 0:02:26]}  Qd6 {[%clk 0:02:24]} 15. g3 {[%clk 0:02:24]}  a5 {[%clk 0:02:13]} 16. Rfe1 {[%clk 0:02:13]}  a4 {[%clk 0:02:13]} 17. Bc2 {[%clk 0:02:13]}  a3 {[%clk 0:02:11]} 18. b3 {[%clk 0:02:11]}  Nbd5 {[%clk 0:02:08]} 19. Ne4 {[%clk 0:02:06]}  Nxe4 {[%clk 0:02:04]} 20. Qxe4 {[%clk 0:02:06]}  g6 {[%clk 0:02:01]} 21. Qf3 {[%clk 0:02:00]}  Rfd8 {[%clk 0:01:55]} 22. h4 {[%clk 0:01:59]}  h5 {[%clk 0:01:44]} 23. Bb1 {[%clk 0:01:31]}  Kg7 {[%clk 0:01:36]} 24. Kh2 {[%clk 0:01:29]}  Nf6 {[%clk 0:01:29]} 25. Rc1 {[%clk 0:01:22]}  Ra6 {[%clk 0:01:12]} 26. Rc4 {[%clk 0:01:19]}  Qd5 {[%clk 0:00:58]} 27. Qxd5 {[%clk 0:01:14]}  Rxd5 {[%clk 0:00:57]} 28. Rec1 {[%clk 0:01:13]}  Rd6 {[%clk 0:00:34]} 29. Kg2 {[%clk 0:01:14]}  Kf8 {[%clk 0:00:34]} 30. Bd3 {[%clk 0:01:10]}  Ke7 {[%clk 0:00:32]} 31. Be2 {[%clk 0:01:10]}  Kd7 {[%clk 0:00:31]} 32. Bf3 {[%clk 0:01:10]}  Nd5 {[%clk 0:00:25]} 33. Kf1 {[%clk 0:00:59]}  Ne7 {[%clk 0:00:25]} 34. Ke2 {[%clk 0:00:50]}  Ra5 {[%clk 0:00:21]} 35. Kd3 {[%clk 0:00:48]}  f6 {[%clk 0:00:20]} 36. Ra4 {[%clk 0:00:46]}  Rxa4 {[%clk 0:00:10]} 37. bxa4 {[%clk 0:00:47]}  e5 {[%clk 0:00:10]} 38. fxe5 {[%clk 0:00:46]}  fxe5 {[%clk 0:00:11]} 39. Rc4 {[%clk 0:00:46]}  c5 {[%clk 0:00:09]} 40. Rxc5 {[%clk 0:00:40]}  Rxd4+ {[%clk 0:00:09]} 41. Kc3 {[%clk 0:00:39]}  Rxa4 {[%clk 0:00:09]} 42. Rxe5 {[%clk 0:00:39]}  Ra6 {[%clk 0:00:07]} 43. Kb3 {[%clk 0:00:38]}  Kd6 {[%clk 0:00:07]} 44. Re3 {[%clk 0:00:37]}  c5 {[%clk 0:00:07]} 45. Be2 {[%clk 0:00:33]}  Ra7 {[%clk 0:00:06]} 46. Bc4 {[%clk 0:00:33]}  Nc6 {[%clk 0:00:03]} 47. Re6+ {[%clk 0:00:32]}  Kd7 {[%clk 0:00:03]} 48. Rxg6 {[%clk 0:00:31]}  Na5+ {[%clk 0:00:02]} 49. Kc3 {[%clk 0:00:31]}  Nc6 {[%clk 0:00:02]} 50. Rg7+ {[%clk 0:00:31]}  Ne7 {[%clk 0:00:02]} 51. Rg5 {[%clk 0:00:30]}  Kd6 {[%clk 0:00:02]} 52. Rxh5 {[%clk 0:00:30]}  Rb7 {[%clk 0:00:02]} 53. Bb3 {[%clk 0:00:29]}  Rb4 {[%clk 0:00:02]} 54. Rh6+ {[%clk 0:00:29]}  Kd7 {[%clk 0:00:03]} 55. g4 {[%clk 0:00:29]}  Rf4 {[%clk 0:00:02]} 56. g5 {[%clk 0:00:27]}  Rf3+ {[%clk 0:00:01]} 57. Kc4 {[%clk 0:00:27]}  Rxf2 {[%clk 0:00:02]} 58. Kxc5 {[%clk 0:00:28]}  Nf5 {[%clk 0:00:01]} 59. Rf6 {[%clk 0:00:27]}  Ke7 {[%clk 0:00:01]} 60. Rf7+ {[%clk 0:00:25]}  Ke8 {[%clk 0:00:01]} 61. g6 {[%clk 0:00:25]}  Rf1 {[%clk 0:00:01]} 62. g7 {[%clk 0:00:24]}  Rc1+ {[%clk 0:00:00]} 63. Kb4 {[%clk 0:00:23]} 1-0


[Site "https://www.chess.com"]

[Event "Titled Tuesday Blitz May 30 Early 2023"]
[White "Levitskiy, Andrey"]
[Black "Begunov, Konstantin"]
[WhiteFideId "14132885"]
[BlackFideId "4118510"]
[WhiteElo "2347"]
[BlackElo "2050"]
[Result "1-0"]
[Round "05"]
[TimeControl "180+2"]
[Date "2023.05.30"]
[WhiteClock "0:00:14"]
[BlackClock "0:00:00"]

1. e4 {[%clk 0:03:00]}  c5 {[%clk 0:02:57]} 2. Nf3 {[%clk 0:03:00]}  d6 {[%clk 0:02:57]} 3. d4 {[%clk 0:03:01]}  cxd4 {[%clk 0:02:58]} 4. Nxd4 {[%clk 0:03:02]}  Nf6 {[%clk 0:02:58]} 5. Nc3 {[%clk 0:03:02]}  a6 {[%clk 0:02:58]} 6. h3 {[%clk 0:03:02]}  b5 {[%clk 0:02:57]} 7. g4 {[%clk 0:03:00]}  Bb7 {[%clk 0:02:57]} 8. Bg2 {[%clk 0:03:00]}  e6 {[%clk 0:02:56]} 9. a3 {[%clk 0:02:46]}  Qc7 {[%clk 0:02:45]} 10. O-O {[%clk 0:02:44]}  Be7 {[%clk 0:02:45]} 11. f4 {[%clk 0:02:33]}  Nc6 {[%clk 0:02:39]} 12. Nde2 {[%clk 0:02:25]}  h6 {[%clk 0:02:19]} 13. f5 {[%clk 0:02:20]}  e5 {[%clk 0:02:13]} 14. Be3 {[%clk 0:02:10]}  Na5 {[%clk 0:02:09]} 15. b3 {[%clk 0:02:08]}  Rc8 {[%clk 0:01:59]} 16. Qd2 {[%clk 0:01:57]}  Bc6 {[%clk 0:01:51]} 17. Ng3 {[%clk 0:01:51]}  Ba8 {[%clk 0:01:35]} 18. Na2 {[%clk 0:01:29]}  O-O {[%clk 0:01:08]} 19. Rac1 {[%clk 0:01:24]}  Nh7 {[%clk 0:00:52]} 20. Qf2 {[%clk 0:01:12]}  Qb8 {[%clk 0:00:33]} 21. Nh5 {[%clk 0:01:00]}  Bg5 {[%clk 0:00:30]} 22. h4 {[%clk 0:00:55]}  Bxe3 {[%clk 0:00:30]} 23. Qxe3 {[%clk 0:00:56]}  Qc7 {[%clk 0:00:22]} 24. f6 {[%clk 0:00:50]}  Qc5 {[%clk 0:00:12]} 25. Qxc5 {[%clk 0:00:47]}  dxc5 {[%clk 0:00:12]} 26. Nxg7 {[%clk 0:00:28]}  Nxf6 {[%clk 0:00:09]} 27. Nf5 {[%clk 0:00:29]}  Nxg4 {[%clk 0:00:08]} 28. Ne7+ {[%clk 0:00:28]}  Kg7 {[%clk 0:00:05]} 29. Nxc8 {[%clk 0:00:29]}  Rxc8 {[%clk 0:00:05]} 30. Bh3 {[%clk 0:00:29]}  h5 {[%clk 0:00:05]} 31. Nc3 {[%clk 0:00:27]}  b4 {[%clk 0:00:04]} 32. axb4 {[%clk 0:00:24]}  cxb4 {[%clk 0:00:05]} 33. Ne2 {[%clk 0:00:24]}  Nc6 {[%clk 0:00:03]} 34. Ng3 {[%clk 0:00:23]}  Kg6 {[%clk 0:00:02]} 35. Bxg4 {[%clk 0:00:13]}  hxg4 {[%clk 0:00:00]} 36. h5+ {[%clk 0:00:14]} 1-0


[Site "https://www.chess.com"]

[Event "Titled Tuesday Blitz May 30 Early 2023"]
[White "Koutlas, Nikolaos"]
[Black "Jeet, Jain"]
[WhiteFideId "25827138"]
[BlackFideId "5073022"]
[WhiteElo "2215"]
[BlackElo "2067"]
[Result "0-1"]
[Round "05"]
[TimeControl "180+2"]
[Date "2023.05.30"]
[WhiteClock "0:00:01"]
[BlackClock "0:00:31"]

1. Nf3 {[%clk 0:03:00]}  c5 {[%clk 0:02:59]} 2. g3 {[%clk 0:02:57]}  Nc6 {[%clk 0:02:59]} 3. Bg2 {[%clk 0:02:58]}  d6 {[%clk 0:03:00]} 4. O-O {[%clk 0:02:57]}  Bd7 {[%clk 0:02:56]} 5. c4 {[%clk 0:02:56]}  Qc8 {[%clk 0:02:56]} 6. d4 {[%clk 0:02:53]}  Bh3 {[%clk 0:02:56]} 7. dxc5 {[%clk 0:02:51]}  dxc5 {[%clk 0:02:55]} 8. Nc3 {[%clk 0:02:51]}  Nf6 {[%clk 0:02:52]} 9. Bf4 {[%clk 0:02:45]}  Bxg2 {[%clk 0:02:37]} 10. Kxg2 {[%clk 0:02:32]}  Nh5 {[%clk 0:02:32]} 11. Be3 {[%clk 0:01:41]}  e6 {[%clk 0:02:25]} 12. Ne4 {[%clk 0:01:37]}  b6 {[%clk 0:02:20]} 13. Qa4 {[%clk 0:01:04]}  Qc7 {[%clk 0:02:01]} 14. Rad1 {[%clk 0:00:23]}  Rc8 {[%clk 0:01:51]} 15. Rd3 {[%clk 0:00:12]}  h6 {[%clk 0:01:19]} 16. Rfd1 {[%clk 0:00:12]}  f5 {[%clk 0:01:18]} 17. Nd6+ {[%clk 0:00:11]}  Bxd6 {[%clk 0:00:51]} 18. Rxd6 {[%clk 0:00:11]}  O-O {[%clk 0:00:52]} 19. Rxe6 {[%clk 0:00:06]}  f4 {[%clk 0:00:52]} 20. Bd2 {[%clk 0:00:06]}  Qd7 {[%clk 0:00:46]} 21. Re4 {[%clk 0:00:05]}  Rcd8 {[%clk 0:00:46]} 22. Bc1 {[%clk 0:00:04]}  Qxd1 {[%clk 0:00:45]} 23. Qxc6 {[%clk 0:00:04]}  Qxc1 {[%clk 0:00:42]} 24. Qg6 {[%clk 0:00:05]}  Qb1 {[%clk 0:00:31]} 25. Qxh5 {[%clk 0:00:01]}  Qxe4 {[%clk 0:00:31]} 0-1


[Site "https://www.chess.com"]

[Event "Titled Tuesday Blitz May 30 Early 2023"]
[White "Olenik Campa, Rudi"]
[Black "Molina, Roberto Junio Brito"]
[WhiteFideId "14633264"]
[BlackFideId "2109450"]
[WhiteElo "2249"]
[BlackElo "2376"]
[Result "0-1"]
[Round "05"]
[TimeControl "180+2"]
[Date "2023.05.30"]
[WhiteClock "0:00:02"]
[BlackClock "0:00:24"]

1. e4 {[%clk 0:02:56]}  c6 {[%clk 0:02:59]} 2. d4 {[%clk 0:02:51]}  d5 {[%clk 0:03:00]} 3. Nc3 {[%clk 0:02:51]}  dxe4 {[%clk 0:03:00]} 4. Nxe4 {[%clk 0:02:50]}  Nd7 {[%clk 0:03:00]} 5. Nf3 {[%clk 0:02:47]}  Ngf6 {[%clk 0:03:00]} 6. Nxf6+ {[%clk 0:02:48]}  Nxf6 {[%clk 0:03:01]} 7. Bd3 {[%clk 0:02:48]}  Bg4 {[%clk 0:03:00]} 8. c3 {[%clk 0:02:44]}  Qd5 {[%clk 0:03:00]} 9. Be2 {[%clk 0:02:40]}  e6 {[%clk 0:02:59]} 10. O-O {[%clk 0:02:39]}  Bd6 {[%clk 0:02:58]} 11. h3 {[%clk 0:02:39]}  Bh5 {[%clk 0:02:57]} 12. c4 {[%clk 0:02:34]}  Qa5 {[%clk 0:02:57]} 13. Bd2 {[%clk 0:02:34]}  Bb4 {[%clk 0:02:54]} 14. Bxb4 {[%clk 0:02:28]}  Qxb4 {[%clk 0:02:55]} 15. Qc2 {[%clk 0:02:26]}  Bxf3 {[%clk 0:02:50]} 16. Bxf3 {[%clk 0:02:26]}  O-O {[%clk 0:02:49]} 17. Rad1 {[%clk 0:02:24]}  Rfd8 {[%clk 0:02:48]} 18. a3 {[%clk 0:02:24]}  Qa5 {[%clk 0:02:44]} 19. Rd3 {[%clk 0:02:18]}  Rd7 {[%clk 0:02:37]} 20. Rfd1 {[%clk 0:02:16]}  Rad8 {[%clk 0:02:37]} 21. b4 {[%clk 0:02:15]}  Qb6 {[%clk 0:02:36]} 22. Qc3 {[%clk 0:02:14]}  h6 {[%clk 0:02:33]} 23. g3 {[%clk 0:02:14]}  a6 {[%clk 0:02:30]} 24. Qd2 {[%clk 0:02:06]}  Qc7 {[%clk 0:02:24]} 25. Qc3 {[%clk 0:02:02]}  Rd6 {[%clk 0:02:21]} 26. Kg2 {[%clk 0:01:51]}  R6d7 {[%clk 0:02:16]} 27. Kg1 {[%clk 0:01:51]}  Qd6 {[%clk 0:02:07]} 28. Be2 {[%clk 0:01:11]}  b5 {[%clk 0:01:56]} 29. Bf3 {[%clk 0:01:00]}  Qc7 {[%clk 0:01:25]} 30. Kg2 {[%clk 0:00:37]}  Qb6 {[%clk 0:01:24]} 31. h4 {[%clk 0:00:24]}  bxc4 {[%clk 0:01:12]} 32. Qxc4 {[%clk 0:00:25]}  Nd5 {[%clk 0:01:12]} 33. Bxd5 {[%clk 0:00:23]}  Rxd5 {[%clk 0:01:07]} 34. Rc1 {[%clk 0:00:23]}  R8d6 {[%clk 0:01:05]} 35. a4 {[%clk 0:00:21]}  Qb7 {[%clk 0:00:57]} 36. Rcd1 {[%clk 0:00:18]}  h5 {[%clk 0:00:54]} 37. Kg1 {[%clk 0:00:18]}  g6 {[%clk 0:00:54]} 38. Rb1 {[%clk 0:00:16]}  a5 {[%clk 0:00:51]} 39. b5 {[%clk 0:00:15]}  Qb6 {[%clk 0:00:49]} 40. Rbd1 {[%clk 0:00:07]}  cxb5 {[%clk 0:00:48]} 41. axb5 {[%clk 0:00:08]}  Rxb5 {[%clk 0:00:45]} 42. Qc8+ {[%clk 0:00:08]}  Kg7 {[%clk 0:00:45]} 43. Qc3 {[%clk 0:00:08]}  Rdd5 {[%clk 0:00:44]} 44. Qc4 {[%clk 0:00:07]}  Rb4 {[%clk 0:00:43]} 45. Qc3 {[%clk 0:00:07]}  a4 {[%clk 0:00:42]} 46. Qa1 {[%clk 0:00:05]}  Qb5 {[%clk 0:00:40]} 47. Ra3 {[%clk 0:00:04]}  Kg8 {[%clk 0:00:37]} 48. Rf3 {[%clk 0:00:04]}  Qe2 {[%clk 0:00:29]} 49. Re3 {[%clk 0:00:03]}  Qb2 {[%clk 0:00:28]} 50. Qc1 {[%clk 0:00:03]}  Qxc1 {[%clk 0:00:27]} 51. Rxc1 {[%clk 0:00:04]}  Rbxd4 {[%clk 0:00:27]} 52. Kg2 {[%clk 0:00:03]}  Rd7 {[%clk 0:00:24]} 53. Rc8+ {[%clk 0:00:03]}  Rd8 {[%clk 0:00:24]} 54. Ra8 {[%clk 0:00:02]}  Rxa8 {[%clk 0:00:24]} 0-1


[Site "https://www.chess.com"]